fUSD/lending_fUSD_20250720
["ID","MTS","AMOUNT","RATE_DAILY","PERIOD"]
[373458026,1753014697563,-1202.26,0.00020054,2]
[373458027,1753014697572,-1497.64,0.00020054,2]
[373458028,1753014697581,-480.0,0.00020054,2]
[373458029,1753014697591,-480.0,0.00020054,2]
[373458030,1753014697600,-480.0,0.00020054,2]
[373458031,1753014697609,-480.0,0.00020054,2]
[373458032,1753014697619,-642.04,0.00020054,2]
[373458033,1753014697629,-520.78,0.00020054,2]
[373458034,1753014697638,-480.0,0.00020054,2]
[373458035,1753014697648,-496.41,0.00020054,2]
[373458036,1753014697660,-818.44,0.00020054,2]
[373458037,1753014697670,-480.0,0.00020054,2]
[373458038,1753014697679,-761.66,0.00020054,2]
[373458039,1753014697688,-480.0,0.00020054,2]
[373458040,1753014697698,-480.0,0.00020054,2]
[373458041,1753014697708,-480.0,0.00020054,2]
[373458042,1753014697718,-2352.9,0.00020054,2]
[373458043,1753014697728,-480.0,0.00020054,2]
[373458044,1753014697738,-480.0,0.00020054,2]
[373458045,1753014697747,-1713.86,0.00020054,2]
[373458046,1753014697757,-783.08,0.00020054,2]
[373458047,1753014697766,-151.0,0.00020054,2]
[373458048,1753014697775,-681.27,0.00020054,2]
[373458049,1753014697784,-154.648733,0.00020054,2]
[373458050,1753014697793,-480.0,0.00020054,2]
[373458051,1753014697802,-1257.01,0.00020054,2]
[373458052,1753014697812,-480.0,0.00020054,2]
[373458053,1753014697821,-154.648733,0.00020054,2]
[373458054,1753014697830,-785.79,0.00020054,2]
[373458055,1753014697840,-593.27,0.00020054,2]
[373458056,1753014697850,-480.0,0.00020054,2]
[373458057,1753014697859,-823.1,0.00020054,2]
[373458058,1753014697868,-1245.21,0.00020054,2]
[373458059,1753014697877,-151.0,0.00020054,2]
[373458060,1753014697886,-480.0,0.00020054,2]
[373458061,1753014697896,-480.0,0.00020054,2]
[373458062,1753014697905,-480.0,0.00020054,2]
[373458063,1753014697916,-480.0,0.00020054,2]
[373458064,1753014697925,-480.0,0.00020054,2]
[373458065,1753014697934,-480.04,0.00020054,2]
[373458066,1753014697944,-662.76,0.00020054,2]
[373458067,1753014697953,-480.0,0.00020054,2]
[373458068,1753014697962,-719.41,0.00020054,2]
[373458069,1753014697972,-738.09,0.00020054,2]
[373458070,1753014697981,-480.0,0.00020054,2]
[373458071,1753014697990,-724.27,0.00020054,2]
[373458072,1753014697999,-480.0,0.00020054,2]
[373458073,1753014698009,-480.0,0.00020054,2]
[373458074,1753014698018,-733.91,0.00020054,2]
[373458075,1753014698027,-480.0,0.00020054,2]
[373458076,1753014698036,-647.33,0.00020054,2]
[373458077,1753014698046,-480.0,0.00020054,2]
[373458078,1753014698055,-731.29,0.00020054,2]
[373458079,1753014698064,-1454.54,0.00020054,2]
[373458080,1753014698073,-797.39,0.00020054,2]
[373458081,1753014698082,-151.0,0.00020054,2]
[373458082,1753014698092,-480.0,0.00020054,2]
[373458083,1753014698269,-599.98,0.00020054,2]
[373458084,1753014698279,-480.0,0.00020054,2]
[373458085,1753014698288,-1373.77,0.00020054,2]
[373458086,1753014698297,-480.0,0.00020054,2]
[373458087,1753014698306,-480.0,0.00020054,2]
[373458088,1753014698316,-151.0,0.00020054,2]
[373458089,1753014698325,-2330.59,0.00020054,2]
[373458090,1753014698335,-793.43,0.00020054,2]
[373458091,1753014698344,-480.0,0.00020054,2]
[373458092,1753014698353,-480.0,0.00020054,2]
[373458093,1753014698362,-2644.46,0.00020054,2]
[373458094,1753014698372,-6377.84,0.00020054,2]
[373458095,1753014698381,-480.0,0.00020054,2]
[373458096,1753014698390,-480.0,0.00020054,2]
[373458097,1753014698399,-480.0,0.00020054,2]
[373458098,1753014698409,-816.21,0.00020054,2]
[373458099,1753014698419,-865.56,0.00020054,2]
[373458100,1753014698429,-467.06850886,0.00020054,2]
[373458101,1753014698439,-480.0,0.00020054,2]
[373458102,1753014698448,-480.0,0.00020054,2]
[373458103,1753014698457,-205.417696,0.00020054,2]
[373458104,1753014698467,-480.0,0.00020054,2]
[373458105,1753014698477,-205.417696,0.00020054,2]
[373458106,1753014698487,-803.64,0.00020054,2]
[373458107,1753014698496,-991.22,0.00020054,2]
[373458108,1753014698506,-510.1,0.00020054,2]
[373458109,1753014698516,-669.29,0.00020054,2]
[373458110,1753014698525,-480.0,0.00020054,2]
[373458111,1753014698534,-2749.41,0.00020054,2]
[373458112,1753014698544,-321.76,0.00020054,2]
[373458113,1753014698554,-480.0,0.00020054,2]
[373458114,1753014698563,-480.0,0.00020054,2]
[373458115,1753014698573,-371.712937,0.00020054,2]
[373458116,1753014698583,-302.67462852,0.00020054,2]
[373458117,1753014698594,-480.0,0.00020054,2]
[373458118,1753014698604,-371.712937,0.00020054,2]
[373458119,1753014698614,-480.0,0.00020054,2]
[373458120,1753014698623,-480.0,0.00020054,2]
[373458121,1753014698632,-516.78,0.00020054,2]
[373458122,1753014698642,-1172.66,0.00020054,2]
[373458123,1753014698655,-652.96,0.00020054,2]
[373458124,1753014698665,-480.0,0.00020054,2]
[373458125,1753014698673,-2043.43,0.00020054,2]
[373458126,1753014698682,-480.0,0.00020054,2]
[373458127,1753014698693,-2088.09,0.00020054,2]
[373458128,1753014698702,-480.0,0.00020054,2]
[373458129,1753014698712,-649.88,0.00020054,2]
[373458130,1753014698722,-992.75,0.00020054,2]
[373458131,1753014698732,-1426.32,0.00020054,2]
[373458132,1753014698741,-1042.02,0.00020054,2]
[373458133,1753014698750,-480.0,0.00020054,2]
[373458134,1753014698759,-947.24,0.00020054,2]
[373458135,1753014698768,-1077.74,0.00020054,2]
[373458136,1753014698777,-2222.89,0.00020054,2]
[373458137,1753014698786,-806.02,0.00020054,2]
[373458138,1753014698795,-3738.98,0.00020054,2]
[373458139,1753014698805,-4000.2,0.00020054,2]
[373458140,1753014698814,-736.85,0.00020054,2]
[373458141,1753014698823,-836.43,0.00020054,2]
[373458142,1753014698832,-734.26,0.00020054,2]
[373458143,1753014698841,-618.09,0.00020054,2]
[373458144,1753014698851,-1581.14,0.00020054,2]
[373458145,1753014698861,-5653.96,0.00020054,2]
[373458146,1753014698870,-1818.28,0.00020054,2]
[373458147,1753014698879,-2210.19,0.00020054,2]
[373458148,1753014698888,-1605.03,0.00020054,2]
[373458149,1753014698897,-626.59,0.00020054,2]
[373458150,1753014698907,-1392.17,0.00020054,2]
[373458151,1753014698919,-314.355759,0.00020054,2]
[373458152,1753014698929,-480.0,0.00020054,2]
[373458153,1753014698938,-1255.43,0.00020054,2]
[373458154,1753014698948,-646.182708,0.00020054,2]
[373458155,1753014698957,-1424.21,0.00020054,2]
[373458156,1753014698966,-314.355759,0.00020054,2]
[373458157,1753014698975,-480.0,0.00020054,2]
[373458158,1753014698985,-151.0,0.00020054,2]
[373458159,1753014698994,-646.182708,0.00020054,2]
[373458160,1753014699003,-1719.33,0.00020054,2]
[373458161,1753014699013,-151.0,0.00020054,2]
[373458162,1753014699023,-480.0,0.00020054,2]
[373458163,1753014699032,-1200.11,0.00020054,2]
[373458164,1753014699042,-1523.7,0.00020054,2]
[373458165,1753014699051,-480.0,0.00020054,2]
[373458166,1753014699061,-480.0,0.00020054,2]
[373458167,1753014699071,-151.0,0.00020054,2]
[373458168,1753014699080,-884.39,0.00020054,2]
[373458169,1753014699089,-722.15,0.00020054,2]
[373458170,1753014699099,-1757.85,0.00020054,2]
[373458171,1753014699108,-782.86,0.00020054,2]
[373458172,1753014699117,-820.43,0.00020054,2]
[373458173,1753014699126,-374.00217146,0.00020054,2]
[373458174,1753014699176,-480.0,0.00019506,2]
[373458175,1753014699186,-170.85,0.00019945,2]
[373458176,1753014699195,-1352.53782854,0.00020054,2]
[373458177,1753014699205,-1010.01,0.00020054,2]
[373458178,1753014699214,-480.0,0.00020054,2]
[373458179,1753014699223,-480.0,0.00020054,2]
[373458180,1753014699233,-505.22,0.00020054,2]
[373458181,1753014699242,-772.32,0.00020054,2]
[373458182,1753014699252,-480.0,0.00020054,2]
[373458183,1753014699261,-2258.72,0.00020054,2]
[373458184,1753014699271,-480.0,0.00020054,2]
[373458185,1753014699280,-480.0,0.00020054,2]
[373458186,1753014699289,-1025.46,0.00020054,2]
[373458187,1753014699298,-513.2,0.00020054,2]
[373458188,1753014699308,-1595.03,0.00020054,2]
[373458189,1753014699317,-814.33,0.00020054,2]
[373458190,1753014699326,-3370.07,0.00020054,2]
[373458191,1753014699336,-1424.86,0.00020054,2]
[373458192,1753014699345,-2379.81,0.00020054,2]
[373458193,1753014699355,-683.76,0.00020054,2]
[373458194,1753014699365,-480.0,0.00020054,2]
[373458195,1753014699375,-480.0,0.00020054,2]
[373458196,1753014699385,-4765.78,0.00020054,2]
[373458197,1753014699394,-536.94,0.00020054,2]
[373458198,1753014699404,-480.0,0.00020054,2]
[373458199,1753014699415,-480.0,0.00020054,2]
[373458200,1753014699424,-1771.29,0.00020054,2]
[373458201,1753014699433,-950.1,0.00020054,2]
[373458202,1753014699443,-480.0,0.00020054,2]
[373458203,1753014699452,-480.0,0.00020054,2]
[373458204,1753014699462,-1361.55,0.00020054,2]
[373458205,1753014699472,-925.91,0.00020054,2]
[373458206,1753014699481,-637.06,0.00020054,2]
[373458207,1753014699490,-838.76,0.00020054,2]
[373458208,1753014699499,-1312.93,0.00020054,2]
[373458209,1753014699508,-4317.78,0.00020054,2]
[373458210,1753014699518,-756.37,0.00020054,2]
[373458211,1753014699528,-527.99161847,0.00020054,2]
[373458212,1753014699538,-9271.75,0.00020054,2]
[373458213,1753014699547,-480.0,0.00020054,2]
[373458214,1753014699557,-1470.98,0.00020054,2]
[373458215,1753014699567,-4009.68,0.00020054,2]
[373458216,1753014699577,-1312.49455301,0.00020054,2]
[373458217,1753014702493,512.0,0.00015447,2]
[373458229,1753014918932,157.0,0.00030136,120]
[373458230,1753014919796,242.48431551,0.00030136,120]
[373458231,1753014925836,153.0,0.00030136,120]
[373458232,1753014926347,153.0,0.00030136,120]
[373458234,1753014926868,153.0,0.00030136,120]
[373458235,1753014927393,153.0,0.00030136,120]
[373458236,1753014927962,153.0,0.00030136,120]
[373458237,1753014928507,153.0,0.00030136,120]
[373458238,1753014929063,194.0,0.00030136,120]
[373458239,1753014929605,153.0,0.00030136,120]
[373458240,1753014933138,153.0,0.00030136,120]
[373458243,1753014934457,153.0,0.00030136,120]
[373458244,1753014934996,153.0,0.00030136,120]
[373458245,1753014935542,153.0,0.00030136,120]
[373458246,1753014936131,153.0,0.00030136,120]
[373458247,1753014936867,153.0,0.00030136,120]
[373458248,1753014938150,270.99715995,0.00030136,120]
[373458249,1753014938682,153.0,0.00030136,120]
[373458250,1753014939234,153.0,0.00030136,120]
[373458251,1753014939760,153.0,0.00030136,120]
[373458252,1753014940640,153.0,0.00030136,120]
[373458253,1753014940809,153.0,0.00030136,120]
[373458254,1753014941325,153.0,0.00030136,120]
[373458255,1753014941987,153.28889455,0.00030136,120]
[373458257,1753014942640,153.0,0.00030136,120]
[373458258,1753014943165,153.0,0.00030136,120]
[373458259,1753014943731,153.0,0.00030136,120]
[373458262,1753014967039,18597.62563034,0.00030137,120]
[373458263,1753014973829,333.0,0.00030136,120]
[373458266,1753014990157,653.5104104,0.00030136,120]
[373458267,1753014990600,233.0,0.00023,30]
[373458276,1753015072259,518.3077578,0.00030136,120]
[373458281,1753015129283,438.0,0.00030136,120]
[373458293,1753015224036,153.0,0.00030136,120]
[373458294,1753015224769,153.0,0.00030136,120]
[373458340,1753015368863,480.0,0.00030136,120]
[373458355,1753015435756,437.10646523,0.00030136,120]
[373458357,1753015447142,399.16,0.00030137,120]
[373458379,1753015542671,-307.07627622,0.00016355,2]
[373458384,1753015571523,-422.83837572,0.00016355,2]
[373458385,1753015573609,-256.09802146,0.00016355,2]
[373458387,1753015575951,-243.60258768,0.00016355,2]
[373458388,1753015579052,-203.26352181,0.00016355,2]
[373458389,1753015580532,-193.90197854,0.00016355,2]
[373458390,1753015582649,-225.46988572,0.00016355,2]
[373458393,1753015584689,-203.07991168,0.00016355,2]
[373458394,1753015592141,300.0,0.00030136,120]
[373458402,1753015635155,-2944.66944117,0.00016355,2]
[373458403,1753015635177,-1000.0,0.00016453,2]
[373458404,1753015635198,-1000.0,0.00016551,2]
[373458405,1753015635222,-1000.0,0.00017053,2]
[373458406,1753015635244,-250.0,0.00017147,2]
[373458407,1753015635267,-1626.780761,0.00017258,2]
[373458408,1753015635289,-1200.0,0.00017345,2]
[373458409,1753015635310,-444.0,0.000175,2]
[373458410,1753015635332,-150.0,0.0001763,2]
[373458411,1753015635353,-300.0,0.00017777,2]
[373458412,1753015635374,-666.0,0.00017778,2]
[373458413,1753015635394,-159.81,0.00017863,2]
[373458414,1753015635419,-217.63660583,0.000179,2]
[373458415,1753015635441,-1000.0,0.0001799,2]
[373458416,1753015635462,-1000.0,0.0001799,2]
[373458417,1753015635483,-152.52,0.00018035,2]
[373458418,1753015635504,-811.0,0.0001805,2]
[373458419,1753015635526,-6893.20442921,0.00018051,2]
[373458420,1753015635547,-231.28369723,0.00018051,2]
[373458421,1753015635567,-600.0,0.00018051,2]
[373458422,1753015635588,-241.64096154,0.00018051,2]
[373458423,1753015635609,-1000.0,0.00018132,2]
[373458424,1753015635629,-600.0,0.00018149,2]
[373458425,1753015635651,-189.31,0.00018149,2]
[373458426,1753015635671,-150.86,0.00018296,2]
[373458427,1753015635692,-888.0,0.00018328,2]
[373458428,1753015635713,-216.9,0.00018329,2]
[373458429,1753015635736,-1861.235,0.00018623,2]
[373458430,1753015635757,-3352.0,0.00018623,2]
[373458431,1753015635780,-234.294,0.00018623,2]
[373458432,1753015635804,-2017.0,0.00018623,2]
[373458433,1753015635827,-1268.0,0.00018623,2]
[373458434,1753015635848,-807.0,0.00018623,2]
[373458435,1753015635870,-961.0,0.00018623,2]
[373458436,1753015635890,-1287.0,0.00018623,2]
[373458437,1753015635911,-1687.0,0.00018623,2]
[373458438,1753015635932,-267.513,0.00018623,2]
[373458439,1753015635953,-1804.18,0.0001863,2]
[373458440,1753015635982,-217.6366058,0.0001865,2]
[373458441,1753015636004,-167.11,0.00018767,2]
[373458442,1753015636027,-435.0,0.0001878,2]
[373458443,1753015636049,-231.28369723,0.00018789,2]
[373458444,1753015636071,-2590.67,0.000188,2]
[373458445,1753015636092,-540.0,0.00018812,2]
[373458446,1753015636114,-2590.67,0.00019,2]
[373458447,1753015636136,-216.9,0.00019016,2]
[373458448,1753015636159,-1680.0,0.00019032,2]
[373458449,1753015636182,-182.13305862,0.00019078,2]
[373458450,1753015636204,-168.46983431,0.00019078,2]
[373458451,1753015636229,-864.86770677,0.00019078,2]
[373458452,1753015636250,-152.77820272,0.00019078,2]
[373458453,1753015636273,-1000.0,0.00019078,2]
[373458454,1753015636294,-2500.1235,0.00019078,2]
[373458455,1753015636317,-1000.0,0.00019164,2]
[373458456,1753015636338,-500.0,0.00019164,2]
[373458457,1753015636365,-1100.0,0.00019164,2]
[373458458,1753015636385,-558.78,0.00019168,2]
[373458459,1753015636406,-374.01303531,0.00019173,2]
[373458460,1753015636426,-377.17754042,0.00019173,2]
[373458461,1753015636447,-500.0,0.00019173,2]
[373458462,1753015636468,-500.0,0.00019173,2]
[373458463,1753015636488,-500.0,0.00019173,2]
[373458464,1753015636509,-500.0,0.00019177,2]
[373458465,1753015636531,-480.0,0.00019178,2]
[373458466,1753015636551,-262.02,0.00019178,2]
[373458467,1753015636572,-480.0,0.00019178,2]
[373458468,1753015636592,-480.0,0.00019178,2]
[373458469,1753015636614,-312.78,0.00019178,2]
[373458470,1753015636635,-475.62990757,0.00019178,2]
[373458471,1753015636656,-431.42,0.00019178,2]
[373458472,1753015636681,-480.0,0.00019178,2]
[373458473,1753015636703,-505.42840106,0.00019178,2]
[373458474,1753015636725,-480.0,0.00019178,2]
[373458475,1753015636747,-480.0,0.00019178,2]
[373458476,1753015636769,-480.0,0.00019178,2]
[373458477,1753015636790,-480.0,0.00019178,2]
[373458478,1753015636810,-480.0,0.00019178,2]
[373458479,1753015636831,-480.0,0.00019178,2]
[373458480,1753015636852,-480.0,0.00019178,2]
[373458481,1753015636873,-480.0,0.00019178,2]
[373458482,1753015636894,-404.67,0.00019178,2]
[373458483,1753015636915,-480.0,0.00019178,2]
[373458484,1753015636936,-480.0,0.00019178,2]
[373458485,1753015636957,-480.0,0.00019178,2]
[373458486,1753015636978,-480.0,0.00019178,2]
[373458487,1753015636998,-480.0,0.00019178,2]
[373458488,1753015637021,-480.0,0.00019178,2]
[373458489,1753015637043,-480.0,0.00019178,2]
[373458490,1753015637064,-480.0,0.00019178,2]
[373458491,1753015637087,-1214.47807281,0.00019178,2]
[373458499,1753015674945,980.0,0.00030136,120]
[373458502,1753015690086,1071.99929761,0.00030137,120]
[373458507,1753015722165,-231.28369723,0.00018051,2]
[373458508,1753015722188,-231.28369723,0.00018051,2]
[373458515,1753015740507,225.469886,0.00018233,2]
[373458518,1753015767961,464.07,0.00018291,2]
[373458519,1753015769210,2764.84555278,0.000301,120]
[373458525,1753015806013,1500.0,0.00030136,120]
[373458527,1753015814822,1500.0,0.00030136,120]
[373458529,1753015824826,500.0,0.00030136,120]
[373458530,1753015825379,1210.0,0.00030136,120]
[373458531,1753015825922,1210.0,0.00030136,120]
[373458532,1753015826441,1210.0,0.00030136,120]
[373458541,1753015832135,-1000.0,0.00018325,2]
[373458542,1753015832145,-239.84119403,0.00018599,2]
[373458543,1753015832155,-4126.0,0.00018623,2]
[373458544,1753015832174,-150.0,0.00018623,2]
[373458545,1753015832186,-1000.0,0.00018785,2]
[373458546,1753015832195,-150.0,0.00018999,2]
[373458547,1753015832206,-182.13305861,0.00019078,2]
[373458548,1753015832219,-2500.0,0.00019078,2]
[373458549,1753015832230,-248.71531821,0.00019147,2]
[373458550,1753015832240,-300.0,0.00019163,2]
[373458551,1753015832251,-1200.0,0.00019163,2]
[373458552,1753015832260,-500.0,0.00019164,2]
[373458553,1753015832270,-900.0,0.00019164,2]
[373458554,1753015832281,-1100.0,0.00019164,2]
[373458555,1753015832292,-419.09,0.00019168,2]
[373458556,1753015832302,-2005.0,0.00019177,2]
[373458557,1753015832312,-480.0,0.00019178,2]
[373458558,1753015832321,-1000.0,0.00019178,2]
[373458559,1753015832330,-480.0,0.00019178,2]
[373458560,1753015832340,-255.38,0.00019178,2]
[373458561,1753015832350,-480.0,0.00019178,2]
[373458562,1753015832360,-480.0,0.00019178,2]
[373458563,1753015832371,-370.0,0.00019178,2]
[373458564,1753015832382,-489.72,0.00019178,2]
[373458565,1753015832393,-400.0,0.00019178,2]
[373458566,1753015832404,-480.0,0.00019178,2]
[373458567,1753015832413,-420.0,0.00019178,2]
[373458568,1753015832422,-480.0,0.00019178,2]
[373458569,1753015832433,-460.0,0.00019178,2]
[373458570,1753015832442,-480.0,0.00019178,2]
[373458571,1753015832452,-480.0,0.00019178,2]
[373458572,1753015832461,-480.0,0.00019178,2]
[373458573,1753015832470,-480.0,0.00019178,2]
[373458575,1753015832480,-309.99780765,0.00019178,2]
[373458576,1753015832495,-170.00219235,0.00019178,2]
[373458577,1753015832504,-480.0,0.00019178,2]
[373458578,1753015832514,-480.0,0.00019178,2]
[373458579,1753015832523,-355.67791134,0.00019178,2]
[373458580,1753015832545,-124.32208866,0.00019178,2]
[373458581,1753015832555,-480.0,0.00019178,2]
[373458582,1753015832565,-480.0,0.00019178,2]
[373458583,1753015832575,-480.0,0.00019178,2]
[373458584,1753015832584,-480.0,0.00019178,2]
[373458585,1753015832594,-480.0,0.00019178,2]
[373458586,1753015832603,-500.0,0.00019178,2]
[373458587,1753015832613,-500.0,0.00019178,2]
[373458588,1753015832631,-480.0,0.00019178,2]
[373458589,1753015832646,-480.0,0.00019178,2]
[373458590,1753015832663,-480.0,0.00019178,2]
[373458591,1753015832679,-480.0,0.00019178,2]
[373458592,1753015832692,-480.0,0.00019178,2]
[373458593,1753015832705,-480.0,0.00019178,2]
[373458594,1753015832720,-439.02907542,0.00019178,2]
[373458595,1753015832734,-480.0,0.00019178,2]
[373458596,1753015832747,-480.0,0.00019178,2]
[373458597,1753015832762,-480.0,0.00019178,2]
[373458598,1753015832777,-480.0,0.00019178,2]
[373458599,1753015832792,-500.0,0.00019178,2]
[373458600,1753015832803,-500.0,0.00019178,2]
[373458601,1753015832814,-500.0,0.00019178,2]
[373458602,1753015832829,-500.0,0.00019178,2]
[373458603,1753015832842,-500.0,0.00019178,2]
[373458604,1753015832856,-500.0,0.00019178,2]
[373458605,1753015832870,-500.0,0.00019178,2]
[373458606,1753015832884,-500.0,0.00019178,2]
[373458607,1753015832899,-500.0,0.00019178,2]
[373458608,1753015832913,-500.0,0.00019178,2]
[373458609,1753015832926,-500.0,0.00019178,2]
[373458610,1753015832940,-303.52042173,0.00019178,2]
[373458611,1753015832953,-500.0,0.00019178,2]
[373458612,1753015832967,-500.0,0.00019178,2]
[373458613,1753015832981,-500.0,0.00019178,2]
[373458614,1753015832994,-500.0,0.00019178,2]
[373458615,1753015833007,-500.0,0.00019178,2]
[373458616,1753015833019,-500.0,0.00019178,2]
[373458617,1753015833035,-500.0,0.00019178,2]
[373458618,1753015833049,-500.0,0.00019178,2]
[373458619,1753015833063,-500.0,0.00019178,2]
[373458620,1753015833075,-111.30670173,0.00019178,2]
[373458621,1753015833092,-388.69329827,0.00019178,2]
[373458622,1753015833119,-500.0,0.00019178,2]
[373458623,1753015833132,-500.0,0.00019178,2]
[373458624,1753015833148,-500.0,0.00019178,2]
[373458625,1753015833159,-500.0,0.00019178,2]
[373458626,1753015833169,-29.23305052,0.00019178,2]
[373458627,1753015833184,-470.76694948,0.00019178,2]
[373458628,1753015833197,-89.26439784,0.00019178,2]
[373458629,1753015833229,-410.73560216,0.00019178,2]
[373458630,1753015833240,-500.0,0.00019178,2]
[373458631,1753015833251,-500.0,0.00019178,2]
[373458632,1753015833268,-500.0,0.00019178,2]
[373458633,1753015833281,-500.0,0.00019178,2]
[373458634,1753015833294,-500.0,0.00019178,2]
[373458635,1753015833306,-147.91289784,0.00019178,2]
[373458636,1753015833322,-352.08710216,0.00019178,2]
[373458637,1753015833334,-480.0,0.00019178,2]
[373458638,1753015833347,-480.0,0.00019178,2]
[373458639,1753015833359,-480.0,0.00019178,2]
[373458640,1753015833371,-480.0,0.00019178,2]
[373458641,1753015833389,-500.0,0.00019178,2]
[373458642,1753015833404,-500.0,0.00019178,2]
[373458643,1753015833418,-480.0,0.00019178,2]
[373458644,1753015833433,-480.0,0.00019178,2]
[373458645,1753015833447,-480.0,0.00019178,2]
[373458646,1753015833461,-480.0,0.00019178,2]
[373458647,1753015833473,-500.0,0.00019178,2]
[373458648,1753015833487,-480.0,0.00019178,2]
[373458649,1753015833500,-480.0,0.00019178,2]
[373458650,1753015833513,-480.0,0.00019178,2]
[373458651,1753015833526,-480.0,0.00019178,2]
[373458652,1753015833539,-460.0,0.00019178,2]
[373458653,1753015833552,-480.0,0.00019178,2]
[373458654,1753015833565,-480.0,0.00019178,2]
[373458655,1753015833578,-480.0,0.00019178,2]
[373458656,1753015833591,-480.0,0.00019178,2]
[373458657,1753015833604,-216.3440615,0.00019178,2]
[373458658,1753015833617,-480.0,0.00019178,2]
[373458659,1753015833629,-480.0,0.00019178,2]
[373458660,1753015833641,-480.0,0.00019178,2]
[373458661,1753015833654,-480.0,0.00019178,2]
[373458662,1753015833667,-480.0,0.00019178,2]
[373458663,1753015833679,-480.0,0.00019178,2]
[373458664,1753015833692,-480.0,0.00019178,2]
[373458665,1753015833704,-443.31233781,0.00019178,2]
[373458666,1753015833716,-480.0,0.00019178,2]
[373458667,1753015833729,-480.0,0.00019178,2]
[373458668,1753015833741,-27.72860238,0.00019178,2]
[373459056,1753015837992,-150.0,0.00018623,2]
[373459058,1753015838004,-452.27139762,0.00019178,2]
[373459061,1753015838015,-240.32826959,0.00019178,2]
[373459063,1753015838030,-239.67173041,0.00019178,2]
[373459065,1753015838042,-480.0,0.00019178,2]
[373459067,1753015838053,-480.0,0.00019178,2]
[373459070,1753015838065,-480.0,0.00019178,2]
[373459072,1753015838077,-480.0,0.00019178,2]
[373459074,1753015838088,-480.0,0.00019178,2]
[373459076,1753015838099,-500.0,0.00019178,2]
[373459078,1753015838110,-500.0,0.00019178,2]
[373459080,1753015838122,-480.0,0.00019178,2]
[373459124,1753015838133,-480.0,0.00019178,2]
[373459129,1753015838567,-480.0,0.00019178,2]
[373459131,1753015838582,-480.0,0.00019178,2]
[373459133,1753015838592,-480.0,0.00019178,2]
[373459134,1753015838602,-480.0,0.00019178,2]
[373459135,1753015838611,-480.0,0.00019178,2]
[373459136,1753015838620,-480.0,0.00019178,2]
[373459137,1753015838630,-480.0,0.00019178,2]
[373459138,1753015838640,-480.0,0.00019178,2]
[373459139,1753015838649,-480.0,0.00019178,2]
[373459140,1753015838658,-480.0,0.00019178,2]
[373459141,1753015838668,-462.80696233,0.00019178,2]
[373459142,1753015838677,-480.0,0.00019178,2]
[373459143,1753015838687,-480.0,0.00019178,2]
[373459144,1753015838696,-480.0,0.00019178,2]
[373459145,1753015838705,-480.0,0.00019178,2]
[373459146,1753015838715,-2935.31,0.00019178,2]
[373459147,1753015838724,-480.0,0.00019178,2]
[373459148,1753015838734,-480.0,0.00019178,2]